bitfinex/quotes_ETHUSD_20250611
["timestamp","ask_amount","ask_price","bid_price","bid_amount"]
[1749672899997,12.77295728,2806.5,2805.4,0.9542]
[1749672899998,0.1776,2806.3,2805.8,0.1776]
[1749672900207,0.84414823,2806.7,2805.9,0.9542]
[1749672900546,0.1776,2806.7,2806.3,0.9542]
[1749672901346,0.1776,2806.7,2806.2,0.1776]
[1749672903127,0.1776,2806.7,2804.9,3.56515186]
[1749672903128,12.77295728,2806.5,2805.5,0.9542]
[1749672903310,11.36830573,2806.4,2805.5,0.9542]
[1749672903741,12.21279226,2806.4,2805.5,0.9542]
[1749672904051,11.36830573,2806.4,2805.5,0.9542]
[1749672904245,12.21241799,2806.4,2805.5,0.9542]
[1749672904430,11.36830573,2806.4,2805.5,0.9542]
[1749672904966,10.0,2806.1,2805.5,0.9542]
[1749672905110,10.0,2806.1,2805.3,1.0007]
[1749672906555,0.9389,2806.2,2805.3,1.0007]
[1749672907415,10.0,2806.3,2805.3,1.0007]
[1749672908011,1.24125151,2806.8,2805.3,1.0007]
[1749672908012,0.9674,2806.5,2805.3,1.0007]
[1749672908626,1.02792821,2806.8,2805.8,0.9428]
[1749672908814,0.9383,2806.9,2805.8,0.9428]
[1749672909912,10.0,2806.8,2805.8,0.9428]
[1749672910113,2.37112573,2806.7,2805.8,0.9428]
[1749672911370,0.9383,2806.9,2805.8,0.9428]
[1749672912261,10.0,2806.8,2805.8,0.9428]
[1749672912445,10.0,2806.5,2805.8,0.9428]
[1749672912648,1.0028,2806.4,2805.8,0.9428]
[1749672913031,0.1776,2806.3,2805.8,1.1204]
[1749672913432,1.11804,2806.3,2805.8,0.9428]
[1749672913632,0.1776,2806.1,2805.8,0.9428]
[1749672914142,10.84314796,2806.8,2805.8,0.9428]
[1749672914331,2.176384,2806.8,2805.8,0.9428]
[1749672914530,0.1776,2806.7,2806.2,0.1776]
[1749672915648,0.1776,2806.7,2806.3,0.9932]
[1749672919366,0.1776,2807.0,2806.6,8.3686283]
[1749672920545,0.1776,2807.0,2806.5,0.1776]
[1749672921374,10.0,2807.2,2806.3,0.9932]
[1749672921538,0.1776,2806.8,2806.3,1.1708]
[1749672923933,2.3167922,2807.3,2806.6,0.1776]
[1749672923934,0.1776,2807.1,2806.6,0.1776]
[1749672924138,0.1776,2807.1,2806.7,0.9142]
[1749672924338,0.33054204,2807.3,2806.9,0.1776]
[1749672924779,0.33054204,2807.3,2807.0,0.9142]
[1749672929682,0.33054204,2807.3,2807.0,13.69889838]
[1749672929887,0.33054204,2807.3,2807.2,1.1524]
[1749672932486,0.33054204,2807.3,2806.9,0.9415]
[1749672932686,0.33054204,2807.3,2807.0,0.1776]
[1749672933995,1.25434204,2807.3,2806.6,0.9415]
[1749672934184,0.1776,2807.2,2806.7,0.1776]
[1749672934383,1.25434204,2807.3,2806.3,0.9415]
[1749672934384,11.25434204,2807.3,2806.3,0.9415]
[1749672934588,0.1776,2806.8,2806.3,1.1191]
[1749672934953,1.25434204,2807.3,2806.3,0.9415]
[1749672935147,0.1776,2807.0,2806.5,0.1776]
[1749672935595,1.0063,2807.1,2806.3,0.9415]
[1749672935770,0.1776,2806.7,2806.3,0.9415]
[1749672936664,0.1776,2806.7,2806.2,0.1776]
[1749672939362,11.4313532,2807.0,2806.1,0.998]
[1749672939597,0.1776,2806.6,2806.1,1.1756]
[1749672947122,1.1094,2806.6,2806.1,0.1776]
[1749672948471,0.9318,2807.0,2806.4,0.9709]
[1749672948693,0.1776,2807.1,2806.5,0.1776]
[1749672950103,0.1776,2807.1,2806.6,1.53]
[1749672950310,0.33054204,2807.3,2807.0,0.98]
[1749672951411,0.33054204,2807.3,2807.2,12.78469838]
[1749672951586,0.33054204,2807.3,2807.2,14.34249838]
[1749672951792,0.33054204,2807.3,2807.2,27.90476683]
[1749672952105,0.33054204,2807.3,2807.2,28.35788958]
[1749672952303,0.33054204,2807.3,2807.2,27.90476683]
[1749672952503,0.33054204,2807.3,2807.2,28.98664729]
[1749672953210,0.33054204,2807.3,2807.2,25.78034342]
[1749672954113,0.33054204,2807.3,2807.2,29.34261187]
[1749672955421,0.33054204,2807.3,2807.2,25.78034342]
[1749672958134,0.33054204,2807.3,2807.2,29.34261187]
[1749672958414,0.33054204,2807.3,2807.2,25.78034342]
[1749672958781,0.33054204,2807.3,2807.2,29.34261187]
[1749672960315,0.33054204,2807.3,2807.2,29.52021187]
[1749672960788,0.33054204,2807.3,2807.2,25.40794342]
[1749672961303,0.33054204,2807.3,2807.2,25.95794342]
[1749672961820,0.33054204,2807.3,2807.2,2.26728046]
[1749672962013,0.33054204,2807.3,2807.2,1.25948046]
[1749672962208,0.33054204,2807.3,2807.2,0.1776]
[1749672963688,0.33054204,2807.3,2807.2,11.6705]
[1749672964018,0.33054204,2807.3,2807.2,15.6858912]
[1749672964820,0.33054204,2807.3,2807.2,12.12362275]
[1749672965020,0.33054204,2807.3,2807.2,11.6705]
[1749672965600,0.33054204,2807.3,2807.2,12.02647139]
[1749672966304,0.33054204,2807.3,2807.2,15.58873984]
[1749672966825,0.33054204,2807.3,2807.2,12.02647139]
[1749672968289,0.33054204,2807.3,2807.2,1.6705]
[1749672970000,0.33054204,2807.3,2807.2,24.45519838]
[1749672974829,0.33054204,2807.3,2807.2,28.47058958]
[1749672976140,0.33054204,2807.3,2807.2,28.83441548]
[1749672977537,0.33054204,2807.3,2807.2,25.27214703]
[1749672977701,0.33054204,2807.3,2807.2,28.83441548]
[1749672981323,0.15052101,2807.3,2807.2,28.83441548]
[1749672982320,0.9311,2808.7,2808.1,12.78469838]
[1749672982520,0.9311,2808.7,2807.9,0.9258]
[1749672982521,1.02420337,2809.1,2808.6,0.1776]
[1749672982734,1.05825421,2809.4,2808.9,0.1776]
[1749672982735,0.9164,2809.3,2808.9,0.1776]
[1749672982935,0.9164,2809.3,2809.0,0.1776]
[1749672983139,0.9164,2809.3,2808.2,14.06316822]
[1749672983140,0.9164,2809.3,2808.3,0.55]
[1749672983439,0.9164,2809.3,2808.9,0.1776]
[1749672986448,0.9164,2809.3,2808.4,1.17988046]
[1749672986653,1.0069,2809.1,2808.7,0.1776]
[1749672987553,1.0069,2809.1,2807.7,13.75549838]
[1749672987731,1.0069,2808.8,2808.4,0.1776]
[1749672989826,1.0069,2808.8,2808.6,0.1776]
[1749672991635,0.9974,2809.0,2808.6,0.1776]
[1749672991839,0.9974,2809.0,2808.9,0.1776]
[1749672996040,0.9886,2809.4,2808.9,0.1776]
[1749672996238,0.9886,2809.4,2808.8,0.992]
[1749672996541,0.9886,2809.4,2809.2,0.1776]
[1749672997139,0.9886,2809.4,2808.8,0.992]
[1749672997480,0.9886,2809.4,2809.3,0.1776]
[1749672998904,0.9886,2809.7,2809.3,0.1776]
[1749673003802,0.9113,2809.4,2809.0,0.1776]
[1749673004302,0.9113,2809.4,2808.4,0.9399]
[1749673004303,1.0889,2809.4,2808.9,0.1776]
[1749673005169,1.0889,2809.4,2808.1,0.9399]
[1749673005170,0.1776,2809.2,2808.7,0.1776]
[1749673005470,0.9113,2809.1,2808.7,0.1776]
[1749673007105,0.9113,2809.0,2807.8,0.9399]
[1749673007294,1.0889,2808.9,2808.4,0.1776]
[1749673007471,2.47625984,2808.9,2808.4,0.1776]
[1749673008070,1.0889,2808.9,2808.4,0.1776]
[1749673009372,0.9113,2808.9,2808.3,0.9399]
[1749673009573,0.9113,2808.9,2808.7,0.1776]
[1749673012587,0.9113,2808.9,2808.1,0.9303]
[1749673012776,0.9113,2808.9,2808.5,0.1776]
[1749673014387,0.9113,2808.9,2808.2,12.78469838]
[1749673014576,0.9113,2808.9,2808.7,0.1776]
[1749673019701,0.1776,2809.2,2808.9,1.5887]
[1749673022681,0.9793,2809.1,2808.9,1.5887]
[1749673023523,0.1776,2809.2,2808.9,1.5887]
[1749673028348,1.31137989,2809.3,2808.9,1.5887]
[1749673028548,1.1569,2809.3,2808.9,1.5887]
[1749673029947,0.1776,2809.3,2808.9,1.5887]
[1749673030152,1.0008,2809.5,2808.9,1.5887]
[1749673030153,0.84739537,2809.5,2809.2,0.1776]
[1749673030352,1.1784,2809.7,2809.2,0.1776]
[1749673030655,2.02579537,2809.7,2809.2,0.1776]
[1749673030947,1.1784,2809.7,2809.2,0.1776]
[1749673031148,2.02579537,2809.7,2809.2,0.1776]
[1749673031451,1.1784,2809.7,2809.2,0.1776]
[1749673031653,2.02579537,2809.7,2809.2,0.1776]
[1749673031853,1.1784,2809.7,2809.2,0.1776]
[1749673032351,2.02579537,2809.7,2809.2,0.1776]
[1749673032553,1.1784,2809.7,2809.2,0.1776]
[1749673032950,2.02579537,2809.7,2809.2,0.1776]
[1749673033257,1.1784,2809.7,2809.2,0.1776]
[1749673034018,10.18540638,2810.1,2809.6,0.1776]
[1749673036348,11.17830638,2810.1,2809.6,0.1776]
[1749673036544,8.35702187,2809.8,2809.2,0.9585]
[1749673036857,8.35702187,2809.8,2809.4,0.1776]
[1749673037056,9.21048406,2809.8,2809.4,0.1776]
[1749673037949,0.1776,2809.9,2809.4,0.1776]
[1749673041463,0.1776,2809.9,2809.5,0.9848]
[1749673041686,0.18540638,2810.1,2809.8,0.1776]
[1749673042990,8.53462187,2810.3,2809.8,0.1776]
[1749673043143,8.35702187,2810.1,2809.8,0.1776]
[1749673043564,8.35702187,2810.1,2809.5,0.9848]
[1749673043781,8.35702187,2810.1,2809.7,0.1776]
[1749673044345,0.9824,2810.0,2809.7,0.1776]
[1749673045774,1.1602,2810.2,2809.7,0.1776]
[1749673049210,0.1776,2810.2,2809.8,0.9397]
[1749673049716,0.1776,2810.4,2809.9,0.1776]
[1749673050608,0.1776,2810.4,2810.0,0.94743219]
[1749673052107,0.1776,2810.6,2810.1,0.1776]
[1749673052559,4.68544089,2810.9,2810.2,0.9212]
[1749673052763,10.1776,2810.8,2810.3,0.1776]
[1749673057075,18.53462187,2810.8,2810.3,0.1776]
[1749673057305,0.9396,2810.6,2809.7,0.9541]
[1749673057611,9.47422187,2810.6,2810.1,0.1776]
[1749673058466,1.1172,2810.6,2810.1,0.1776]
[1749673058667,4.0146,2810.6,2810.2,0.9602]
[1749673060073,0.1776,2810.6,2810.2,0.9602]
[1749673060476,4.0136,2810.6,2810.2,0.9602]
[1749673061215,12.37062187,2810.6,2810.2,0.9602]
[1749673061696,13.21706276,2810.6,2810.2,0.9602]
[1749673061883,12.37062187,2810.6,2810.2,0.9602]
[1749673062210,13.21706276,2810.6,2810.2,0.9602]
[1749673062513,12.37062187,2810.6,2810.2,0.9602]
[1749673062699,13.21706276,2810.6,2810.2,0.9602]
[1749673062896,12.37062187,2810.6,2810.2,0.9602]
[1749673063099,13.21706276,2810.6,2810.2,0.9602]
[1749673063308,12.37062187,2810.6,2810.2,0.9602]
[1749673063494,13.21706276,2810.6,2810.2,0.9602]
[1749673063682,12.37062187,2810.6,2810.2,0.9602]
[1749673064019,3.835,2810.5,2810.2,0.9602]
[1749673064995,4.68144089,2810.5,2810.2,0.9602]
[1749673065413,3.835,2810.5,2810.2,0.9602]
[1749673065611,4.68144089,2810.5,2810.2,0.9602]
[1749673066177,5.0138183,2810.5,2810.2,0.9602]
[1749673066384,8.35702187,2810.4,2810.1,0.1776]
[1749673066618,0.1776,2810.1,2809.5,0.1776]
[1749673066919,8.35702187,2809.7,2809.5,0.1776]
[1749673067094,3.834,2809.6,2809.5,0.1776]
[1749673068635,0.1776,2809.8,2809.5,0.1776]
[1749673068786,3.834,2809.7,2809.5,0.1776]
[1749673068985,0.50990676,2809.8,2809.5,0.1776]
[1749673069187,3.834,2809.7,2809.5,0.1776]
[1749673070400,8.35702187,2809.6,2808.5,0.9875]
[1749673070611,8.35702187,2809.1,2808.7,0.1776]
[1749673071015,0.1776,2809.2,2808.7,0.1776]
[1749673071438,0.1776,2809.2,2808.8,0.9427]
[1749673073642,3.833,2809.4,2808.8,0.9427]
[1749673073841,3.832,2809.4,2809.0,0.1776]
[1749673074139,0.1776,2809.5,2809.0,0.1776]
[1749673074140,4.0096,2809.5,2809.0,0.1776]
[1749673074354,4.34183302,2809.5,2809.0,0.1776]
[1749673074506,4.34183702,2809.5,2809.0,0.1776]
[1749673074829,4.0096,2809.5,2809.0,0.1776]
[1749673075028,4.34183701,2809.5,2809.0,0.1776]
[1749673075202,4.0096,2809.5,2809.0,0.1776]
[1749673077516,12.6997539,2809.5,2809.0,0.1776]
[1749673077747,12.36662187,2809.5,2809.0,0.1776]
[1749673080259,4.0096,2809.5,2809.0,0.1776]
[1749673080755,10.0,2809.9,2809.1,0.9601]
[1749673081056,0.1776,2809.7,2809.2,0.1776]
[1749673081553,4.0086,2809.7,2809.2,0.1776]
[1749673082658,4.0076,2809.7,2809.2,0.1776]
[1749673083618,0.9594,2810.2,2809.4,8.35702187]
[1749673083859,0.1776,2810.2,2809.6,8.53462187]
[1749673084045,0.1776,2810.2,2809.7,0.9601]
[1749673084663,1.39048773,2810.9,2809.2,3.83]
[1749673084664,3.83,2810.8,2810.1,1.1377]
[1749673084820,3.83,2810.8,2810.1,0.9601]
[1749673084821,4.67746465,2810.8,2810.1,0.9601]
[1749673085163,0.84746465,2810.8,2810.3,0.1776]
[1749673085329,0.33330424,2810.7,2810.3,0.1776]
[1749673085531,0.3333041,2810.6,2810.3,0.1776]
[1749673085843,0.1776,2810.8,2810.4,0.9946]
[1749673087355,0.33329514,2810.7,2810.4,0.9946]
[1749673087553,0.1776,2810.8,2810.4,0.9946]
[1749673087761,0.84879169,2811.0,2810.4,0.9946]
[1749673088054,10.84857452,2811.4,2810.6,0.9772]
[1749673088257,0.33325219,2811.3,2810.6,9.33422187]
[1749673088556,0.1776,2811.4,2811.0,0.9772]
[1749673089116,8.35702187,2811.8,2811.0,0.9772]
[1749673089358,0.51079688,2811.7,2811.2,0.1776]
[1749673089562,0.1776,2811.7,2811.2,0.1776]
[1749673090021,0.67765,2811.7,2811.2,0.1776]
[1749673090542,0.33319271,2811.6,2811.2,0.1776]
[1749673090741,0.67765,2811.7,2811.2,0.1776]
[1749673090918,0.33319258,2811.6,2811.2,0.1776]
[1749673091277,0.33319226,2811.5,2811.2,0.1776]
[1749673091572,0.67765,2811.7,2811.2,0.1776]
[1749673091573,0.1776,2811.7,2811.2,0.1776]
[1749673091939,0.33319262,2811.6,2811.2,0.1776]
[1749673092154,0.1776,2811.7,2811.2,0.1776]
[1749673092370,0.33318928,2811.6,2811.2,0.1776]
[1749673092672,0.33318667,2811.6,2811.3,1.0047]
[1749673092872,0.51076644,2812.0,2811.5,0.1776]
[1749673093071,0.59438832,2812.0,2811.5,0.1776]
[1749673093228,9.28102187,2811.9,2811.3,1.0047]
[1749673093426,0.1776,2811.6,2811.3,1.0047]
[1749673095837,8.35702187,2811.5,2810.9,0.9356]
[1749673096023,8.35702187,2811.3,2810.9,1.1132]
[1749673096227,8.35702187,2811.1,2810.2,1.06]
[1749673096430,8.35702187,2810.9,2810.7,0.1776]
[1749673096650,0.1776,2810.8,2810.3,1.1132]
[1749673097491,8.35702187,2810.7,2810.3,1.1132]
[1749673097663,3.825,2811.0,2810.1,0.9356]
[1749673097874,0.1776,2810.6,2810.1,1.1132]
[1749673098709,8.35702187,2810.3,2809.8,0.9429]
[1749673098993,8.35702187,2810.3,2809.9,0.1776]
[1749673099351,0.1776,2810.4,2809.9,0.1776]
[1749673100250,8.35702187,2810.3,2809.9,0.1776]
[1749673100649,8.35702187,2810.1,2809.9,0.1776]
[1749673100853,8.53462187,2810.1,2809.6,0.1776]
[1749673101390,17.50174566,2810.3,2809.5,0.9429]
[1749673101593,0.1776,2810.0,2809.5,1.1205]
[1749673101775,0.1776,2810.0,2809.5,0.1776]
[1749673104102,0.55882721,2810.0,2809.5,0.1776]
[1749673104397,0.1776,2809.8,2809.3,0.1776]
[1749673109405,1.06045476,2811.0,2810.1,0.99]
[1749673109575,0.9543,2811.4,2810.4,0.9494]
[1749673109785,12.75894566,2810.7,2809.9,0.9494]
[1749673109970,1.27589457,2810.6,2809.9,0.9494]
[1749673110905,10.9764,2810.9,2809.9,0.9494]
[1749673112371,0.33329838,2810.8,2809.9,0.9494]
[1749673112572,10.9764,2810.9,2809.9,0.9494]
[1749673112773,0.33330132,2810.8,2809.9,0.9494]
[1749673112968,1.51317013,2810.8,2809.9,2.85057477]
[1749673113199,11.51317013,2810.8,2809.9,0.9494]
[1749673113399,11.51317013,2810.8,2809.7,0.9494]
[1749673113400,11.5264,2810.7,2809.7,0.9494]
[1749673113602,10.0,2810.5,2809.7,0.9494]
[1749673113910,1.27045186,2810.4,2809.2,4.876]
[1749673114098,1.46041405,2810.3,2809.2,5.45508]
[1749673114275,0.33336283,2810.2,2809.2,5.45508]
[1749673114614,1.12704519,2810.3,2809.2,5.45508]
[1749673115510,1.12704519,2810.3,2809.2,5.45408]
[1749673115697,1.12704519,2810.3,2809.3,0.545408]
[1749673115698,0.20641452,2810.2,2809.3,0.545408]
[1749673116321,0.33336355,2810.1,2809.3,0.545408]
[1749673116515,0.33337085,2810.0,2809.4,1.0078]
[1749673116680,1.12250554,2810.4,2809.4,1.0078]
[1749673117020,2.61685609,2810.4,2809.5,1.3338623]
[1749673117215,0.33335422,2810.3,2809.5,1.3338623]
[1749673117399,2.61685609,2810.4,2809.5,1.3338623]
[1749673117780,0.33335311,2810.3,2809.5,1.3338623]
[1749673117986,2.61685609,2810.4,2809.5,1.3338623]
[1749673118192,0.18540554,2810.4,2809.6,0.975]
[1749673118421,0.33334496,2810.3,2809.6,13.73394566]
[1749673118595,0.18540554,2810.4,2809.6,13.73394566]
[1749673119297,0.1776,2810.2,2809.7,0.1776]
[1749673119494,0.1776,2810.2,2809.8,0.57908]
[1749673119709,0.1776,2810.5,2810.0,0.1776]
[1749673120617,0.33331111,2810.4,2810.0,0.1776]
[1749673120818,0.1776,2810.5,2810.0,0.1776]
[1749673122043,0.18537058,2810.8,2810.3,0.9947]
[1749673122321,0.1776,2811.1,2810.6,12.93654566]
[1749673122533,0.1776,2811.1,2810.6,3.9956]
[1749673122696,0.33324379,2811.0,2810.6,3.9956]
[1749673123026,0.1776,2811.1,2810.6,0.1776]
[1749673123333,0.1776,2811.1,2810.6,0.78213]
[1749673124633,0.33324551,2811.0,2810.6,0.78213]
[1749673125033,0.1776,2811.1,2810.6,0.78213]
[1749673125623,0.33324639,2811.0,2810.6,0.78213]
[1749673125935,0.1776,2811.1,2810.6,0.78213]
[1749673127441,0.84735239,2811.5,2811.0,12.75894566]
[1749673127738,0.35140408,2811.6,2811.4,0.9758]
[1749673128335,0.18524325,2812.3,2811.4,0.9758]
[1749673128535,0.33311225,2812.2,2811.4,0.9758]
[1749673128740,1.85165239,2812.7,2811.5,1.37347457]
[1749673129036,12.03689577,2812.7,2811.4,0.9758]
[1749673130745,12.39092996,2812.7,2811.4,0.9758]
[1749673130951,0.33311838,2812.6,2811.4,0.9758]
[1749673131153,12.39092996,2812.7,2811.4,0.9758]
[1749673131316,0.33311222,2812.6,2811.4,0.9758]
[1749673131515,1.27240422,2812.5,2811.6,0.9298]
[1749673131806,0.33311107,2812.4,2811.6,0.9298]
[1749673132011,0.33309919,2812.3,2811.8,0.9298]
[1749673132238,0.18524338,2812.7,2811.8,0.9298]
[1749673132420,10.18524338,2812.7,2811.8,0.9298]
[1749673132624,2.2944189,2812.6,2811.8,0.9298]
[1749673132817,10.0,2812.5,2811.8,0.9298]
[1749673133747,0.54693401,2812.7,2811.8,0.9298]
[1749673134114,0.54693401,2812.7,2811.8,0.5798682]
[1749673136943,0.36169063,2812.7,2811.8,0.5798682]
[1749673137233,0.18523632,2812.8,2811.8,0.5798682]
[1749673137438,0.1776,2812.3,2811.8,0.7574682]
[1749673139833,0.1776,2812.2,2811.8,0.5798682]
[1749673140028,10.35900787,2812.4,2811.0,12.75894566]
[1749673140373,10.35900787,2812.4,2811.3,0.1776]
[1749673140374,0.1776,2811.9,2811.3,0.1776]
[1749673140666,0.33315511,2811.8,2811.3,0.1776]
[1749673140869,0.33315201,2811.7,2811.3,0.1776]
[1749673141029,10.0,2811.8,2811.2,0.9999]
[1749673141229,0.1776,2811.5,2811.2,0.9999]
[1749673141469,0.1776,2811.9,2811.3,0.1776]
[1749673141669,0.1776,2811.9,2811.4,0.9999]
[1749673142269,0.33314033,2811.8,2811.4,0.9999]
[1749673142566,0.1776,2811.9,2811.4,0.9999]
[1749673142934,10.0,2812.2,2811.4,0.9999]
[1749673143267,0.1776,2811.7,2811.4,0.9999]
[1749673143468,0.33316992,2811.6,2811.4,0.9999]
[1749673143645,0.1776,2811.7,2811.4,0.9999]
[1749673144164,0.33316462,2811.6,2811.4,0.9999]
[1749673144328,0.1776,2811.7,2811.4,0.9999]
[1749673144730,0.33317331,2811.6,2811.4,0.9999]
[1749673144937,0.1776,2811.7,2811.4,0.9999]
[1749673145332,0.84555336,2812.5,2811.6,22.75894566]
[1749673145532,0.14336581,2812.9,2812.2,0.9139]
[1749673145860,12.75894566,2812.8,2811.6,0.9139]
[1749673146058,10.33309876,2812.7,2811.6,0.9139]
[1749673146259,10.0,2812.4,2811.6,0.9139]
[1749673146465,2.27589457,2812.3,2811.6,0.9139]
[1749673146634,10.0,2812.2,2811.6,0.9139]
[1749673146838,0.9367,2812.6,2811.6,0.9139]
[1749673147440,15.09007411,2812.9,2811.6,0.9139]
[1749673147933,0.33310043,2812.8,2811.6,0.9139]
[1749673148138,5.09007411,2812.9,2811.6,0.9139]
[1749673148386,1.59360606,2812.8,2811.6,0.9139]
[1749673149073,0.33309203,2812.7,2811.6,0.9139]
[1749673149276,0.33308978,2812.6,2811.8,0.9345]
[1749673149453,0.33307185,2812.5,2811.8,0.9345]
[1749673149650,1.27907411,2812.9,2811.8,0.9345]
[1749673150165,0.33306399,2812.8,2811.8,0.9345]
[1749673150358,0.33306191,2812.7,2811.9,0.9345]
[1749673150565,1.27907411,2812.9,2811.9,0.9345]
[1749673151291,1.27907411,2812.9,2811.9,1.5437]
[1749673151292,0.32857411,2812.9,2811.9,1.5437]
[1749673151454,0.14336581,2812.9,2812.7,12.75894566]
[1749673151646,0.14336581,2812.9,2812.8,3.81]
[1749673151835,0.14336581,2812.9,2812.8,13.24494566]
[1749673152039,0.14336581,2812.9,2812.8,18.04764566]
[1749673153780,0.14336581,2812.9,2812.8,0.9937]
[1749673153987,0.14336581,2812.9,2812.2,0.9937]
[1749673154892,0.14336581,2812.9,2812.3,3.809]
[1749673155462,0.32096581,2812.9,2812.4,0.1776]
[1749673159279,0.14336581,2812.9,2812.2,0.9937]
[1749673159493,0.1776,2812.6,2812.3,3.808]
[1749673159849,0.1776,2812.6,2812.2,0.9937]
[1749673160078,0.32096581,2812.9,2812.4,0.1776]
[1749673160597,0.32096581,2812.9,2812.5,0.9929]
[1749673161768,0.32096581,2812.9,2812.5,4.8009]
[1749673162051,0.32096581,2812.9,2812.5,0.9929]
[1749673164279,0.14336581,2812.9,2812.5,0.9929]
[1749673165164,0.14336581,2812.9,2812.6,12.75894566]
[1749673165372,0.14336581,2812.9,2812.5,0.9929]
[1749673165555,0.14336581,2812.9,2812.6,3.807]
[1749673165758,0.14336581,2812.9,2812.5,0.9929]
[1749673168150,0.14336581,2812.9,2812.5,4.7999]
[1749673168963,0.14336581,2812.9,2812.5,0.9929]
[1749673169175,0.14336581,2812.9,2812.5,4.7999]
[1749673169890,0.14336581,2812.9,2812.5,0.9929]
[1749673170088,0.14336581,2812.9,2812.5,4.7989]
[1749673170279,0.14336581,2812.9,2812.5,0.9929]
[1749673173153,0.14336581,2812.9,2812.5,2.74868457]
[1749673173995,0.14336581,2812.9,2812.7,12.75894566]
[1749673174364,0.14336581,2812.9,2812.7,12.93654566]
[1749673174781,0.14336581,2812.9,2812.8,3.806]
[1749673176979,0.14336581,2812.9,2812.5,3.805]
[1749673177181,0.32096581,2812.9,2812.4,0.1776]
[1749673177619,0.32096581,2812.9,2812.3,3.805]
[1749673177620,0.1776,2812.5,2812.3,3.805]
[1749673178495,0.14336581,2812.9,2812.3,3.805]
[1749673178700,0.14336581,2812.9,2812.4,12.93654566]
[1749673179581,0.993943,2812.9,2812.4,12.93654566]
[1749673180719,0.14336581,2812.9,2812.5,0.9918]
[1749673182701,0.14336581,2812.9,2812.6,0.1776]
[1749673182913,0.14336581,2812.9,2812.7,3.804]
[1749673183217,0.14336581,2812.9,2812.8,0.9918]
[1749673183441,0.14336581,2812.9,2812.8,1.1694]
[1749673183646,0.14336581,2812.9,2812.8,2.67108438]
[1749673183859,0.14336581,2812.9,2812.8,1.67928438]
[1749673184031,0.14336581,2812.9,2812.8,6.47508438]
[1749673184804,0.14336581,2812.9,2812.8,6.29748438]
[1749673188949,0.14336581,2812.9,2812.8,7.34248438]
[1749673189107,0.14336581,2812.9,2812.8,6.29648438]
[1749673192551,0.14336581,2812.9,2812.8,1.50168438]
[1749673192731,0.14336581,2812.9,2812.8,3.802]
[1749673192932,0.14336581,2812.9,2812.5,10.9354]
[1749673193461,0.14336581,2812.9,2812.6,3.802]
[1749673194074,0.14336581,2812.9,2812.7,0.1776]
[1749673194229,0.14336581,2812.9,2812.8,3.802]
[1749673194808,0.14336581,2812.9,2812.8,5.13356]
[1749673194932,0.14336581,2812.9,2812.8,15.13356]
[1749673195134,0.14336581,2812.9,2812.8,15.83447002]
[1749673195459,0.14336581,2812.9,2812.8,15.31116]
[1749673199346,0.14336581,2812.9,2812.8,19.41633633]
[1749673199556,0.14336581,2812.9,2812.8,19.93964635]
[1749673200666,0.14336581,2812.9,2812.8,11.50916]
[1749673200877,0.14336581,2812.9,2812.8,16.35616]
[1749673201175,0.14336581,2812.9,2812.8,11.50916]
[1749673201338,0.14336581,2812.9,2812.8,15.9582]
[1749673201531,0.14336581,2812.9,2812.8,1.1112]
[1749673201758,0.14336581,2812.9,2812.8,4.9122]
[1749673205437,0.14336581,2812.9,2812.8,3.9786]
[1749673207541,0.14336581,2812.9,2812.8,0.1776]
[1749673207740,0.14336581,2812.9,2812.8,3.9776]
[1749673208328,0.14336581,2812.9,2812.8,4.9087]
[1749673208524,0.14336581,2812.9,2812.8,6.67546457]
[1749673210273,0.14336581,2812.9,2812.8,16.73654566]
[1749673210646,0.14336581,2812.9,2812.8,17.70664566]
[1749673211430,0.14336581,2812.9,2812.8,13.90664566]
[1749673211632,0.14336581,2812.9,2812.8,0.1776]
[1749673211832,0.14336581,2812.9,2812.8,3.9776]
[1749673213077,0.14336581,2812.9,2812.8,3.799]
[1749673214144,0.14336581,2812.9,2812.6,0.1776]
[1749673214352,0.14336581,2812.9,2812.6,3.9766]
[1749673216877,0.14336581,2812.9,2812.6,16.73554566]
[1749673218083,0.14336581,2812.9,2812.8,0.1776]
[1749673218306,0.14336581,2812.9,2812.8,3.9766]
[1749673219784,0.14336581,2812.9,2812.8,0.1776]
[1749673219974,0.14336581,2812.9,2812.8,3.9766]
[1749673223061,0.14336581,2812.9,2812.8,0.1776]
[1749673223304,0.14336581,2812.9,2812.8,4.76039573]
[1749673224766,0.14336581,2812.9,2812.8,0.96239573]
[1749673224967,0.14336581,2812.9,2812.8,4.76039573]
[1749673227188,0.14336581,2812.9,2812.8,17.51934139]
[1749673230494,0.14336581,2812.9,2812.8,13.72134139]
[1749673230687,0.14336581,2812.9,2812.8,17.51834139]
[1749673231297,0.14336581,2812.9,2812.8,18.50034139]
[1749673235426,0.14336581,2812.9,2812.8,14.07022393]
[1749673238140,0.14336581,2812.9,2812.8,5.74139573]
[1749673240010,0.14336581,2812.9,2812.8,19.84657206]
[1749673240203,0.14336581,2812.9,2812.8,16.29139573]
[1749673241240,0.14336581,2812.9,2812.8,20.36988208]
[1749673242355,0.3328345,2814.7,2813.8,16.6576564]
[1749673242521,0.9542,2814.8,2814.5,8.3288282]
[1749673242704,0.9542,2814.8,2813.9,1.67355457]
[1749673242901,0.9542,2814.7,2814.0,3.794]
[1749673243104,8.3288282,2814.9,2814.0,3.794]
[1749673243105,0.85040246,2814.6,2814.0,3.794]
[1749673243322,1.80408332,2814.7,2814.4,8.3288282]
[1749673243536,0.9542,2814.7,2814.4,12.1228282]
[1749673243739,0.9542,2814.7,2814.6,8.3288282]
[1749673243945,0.9542,2814.7,2814.6,12.1228282]
[1749673244142,0.9542,2815.0,2814.6,12.1228282]
[1749673244342,0.9542,2815.0,2814.7,8.3288282]
[1749673244343,1.20126909,2815.0,2814.7,8.3288282]
[1749673244651,1.20126909,2815.0,2814.8,3.794]
[1749673245619,1.20126909,2815.0,2814.5,0.9875]
[1749673245620,1.20126909,2815.0,2814.3,12.70630245]
[1749673245820,0.9547,2814.9,2813.9,10.0]